[Event "Live Chess"]
[Site "Chess.com"]
[Date "2023.05.21"]
[Round "-"]
[White "1600x"]
[Black "f4nomore"]
[Result "1-0"]
[WhiteElo "1870"]
[BlackElo "1384"]
[TimeControl "300"]
[EndTime "4:48:19 PDT"]
[Termination "1600x won on time"]

1. e4 {[%clk 0:04:51.7]} 1... g6 {[%clk 0:04:59.9]} 2. Nf3 {[%clk 0:04:50.2]}
2... Bg7 {[%clk 0:04:59.6]} 3. Be2 {[%clk 0:04:47.4]} 3... d6 {[%clk 0:04:59.5]}
4. O-O {[%clk 0:04:44.5]} 4... a6 {[%clk 0:04:59.4]} 5. d4 {[%clk 0:04:42.5]}
5... Nd7 {[%clk 0:04:58.6]} 6. Nc3 {[%clk 0:04:40.9]} 6... c5 {[%clk 0:04:57]}
7. Qd3 {[%clk 0:04:39]} 7... cxd4 {[%clk 0:04:54.5]} 8. Nd5 {[%clk 0:04:37.2]}
8... Ngf6 {[%clk 0:04:51.7]} 9. Qxd4 {[%clk 0:04:35.7]} 9... O-O {[%clk
0:04:48.4]} 10. Qd3 {[%clk 0:04:34.3]} 10... Nxd5 {[%clk 0:04:43.6]} 11. exd5
{[%clk 0:04:32.8]} 11... Nf6 {[%clk 0:04:41.1]} 12. Qb3 {[%clk 0:04:31.1]} 12...
b5 {[%clk 0:04:38.7]} 13. a4 {[%clk 0:04:25]} 13... Bb7 {[%clk 0:04:33]} 14. c4
{[%clk 0:04:22.7]} 14... Rb8 {[%clk 0:04:26.9]} 15. axb5 {[%clk 0:04:21.3]}
15... axb5 {[%clk 0:04:23.7]} 16. Bg5 {[%clk 0:04:19.4]} 16... bxc4 {[%clk
0:04:19.8]} 17. Qc2 {[%clk 0:04:17.5]} 17... Bxd5 {[%clk 0:04:16.1]} 18. Qd2
{[%clk 0:04:16.1]} 18... Be6 {[%clk 0:04:08.7]} 19. Bxf6 {[%clk 0:04:14.4]}
19... Bxf6 {[%clk 0:04:06.6]} 20. Rfb1 {[%clk 0:04:12.2]} 20... d5 {[%clk
0:03:58]} 21. Nd4 {[%clk 0:04:08.9]} 21... Bd7 {[%clk 0:03:45.4]} 22. Nc2 {[%clk
0:03:58.9]} 22... e6 {[%clk 0:03:43.6]} 23. Bf1 {[%clk 0:03:48.3]} 23... Qc8
{[%clk 0:03:28.1]} 24. Ne3 {[%clk 0:03:43.9]} 24... c3 {[%clk 0:03:09.8]} 25.
bxc3 {[%clk 0:03:30.7]} 25... Rxb1 {[%clk 0:02:58.8]} 26. Rxb1 {[%clk 0:03:29]}
26... Qxc3 {[%clk 0:02:55.3]} 27. Qxc3 {[%clk 0:03:26.7]} 27... Bxc3 {[%clk
0:02:53]} 28. Rb7 {[%clk 0:03:24.9]} 28... Bc6 {[%clk 0:02:48.4]} 29. Rc7 {[%clk
0:03:20.6]} 29... Be8 {[%clk 0:02:24.1]} 30. Rxc3 {[%clk 0:02:48.9]} 30... d4
{[%clk 0:02:22.2]} 31. Ra3 {[%clk 0:02:46.9]} 31... dxe3 {[%clk 0:02:19.4]} 32.
fxe3 {[%clk 0:02:43.9]} 32... Bc6 {[%clk 0:02:17.1]} 33. Rc3 {[%clk 0:02:24.1]}
33... Bd5 {[%clk 0:02:15.3]} 34. Rc5 {[%clk 0:01:56.8]} 34... Ra8 {[%clk
0:02:11]} 35. Rc2 {[%clk 0:01:54]} 35... Ra1 {[%clk 0:02:03.1]} 36. Kf2 {[%clk
0:01:51.3]} 36... Be4 {[%clk 0:01:55.6]} 37. Rd2 {[%clk 0:01:49.1]} 37... Kg7
{[%clk 0:01:51]} 38. Be2 {[%clk 0:01:47.2]} 38... h5 {[%clk 0:01:43.6]} 39. h3
{[%clk 0:01:45.2]} 39... Ra5 {[%clk 0:01:35.9]} 40. g4 {[%clk 0:01:43.1]} 40...
h4 {[%clk 0:01:31.7]} 41. Rd4 {[%clk 0:01:36.8]} 41... Bb1 {[%clk 0:01:19.2]}
42. Rb4 {[%clk 0:01:23.8]} 42... Ba2 {[%clk 0:01:12.2]} 43. g5 {[%clk
0:01:09.9]} 43... Rxg5 {[%clk 0:01:08.9]} 44. Rxh4 {[%clk 0:01:08.2]} 44... Rf5+
{[%clk 0:01:06.5]} 45. Bf3 {[%clk 0:01:04.8]} 45... Bb3 {[%clk 0:01:01.4]} 46.
Rb4 {[%clk 0:01:02.6]} 46... Bd1 {[%clk 0:00:56.7]} 47. Rf4 {[%clk 0:01:01]}
47... Bxf3 {[%clk 0:00:48.7]} 48. Kxf3 {[%clk 0:00:59]} 48... Rh5 {[%clk
0:00:41.2]} 49. Kg3 {[%clk 0:00:57.7]} 49... g5 {[%clk 0:00:34.3]} 50. Re4
{[%clk 0:00:55.8]} 50... Kg6 {[%clk 0:00:29.6]} 51. Ra4 {[%clk 0:00:53.6]} 51...
f6 {[%clk 0:00:26.1]} 52. Ra6 {[%clk 0:00:44.4]} 52... e5 {[%clk 0:00:24.8]} 53.
e4 {[%clk 0:00:42.6]} 53... Rh4 {[%clk 0:00:22.8]} 54. Ra4 {[%clk 0:00:40.7]}
54... Rf4 {[%clk 0:00:16.5]} 55. Kg2 {[%clk 0:00:39.1]} 55... Kh5 {[%clk
0:00:12.3]} 56. Ra6 {[%clk 0:00:37.3]} 56... Kh4 {[%clk 0:00:10.2]} 57. Ra8
{[%clk 0:00:36]} 57... Kh5 {[%clk 0:00:00.9]} 58. Ra6 {[%clk 0:00:34.7]} 1-0

[Event "Live Chess"]
[Site "Chess.com"]
[Date "2023.05.21"]
[Round "-"]
[White "domrobson"]
[Black "JoeyCage"]
[Result "0-1"]
[WhiteElo "1715"]
[BlackElo "2294"]
[TimeControl "300"]
[EndTime "4:48:24 PDT"]
[Termination "JoeyCage won by resignation"]

1. d4 {[%clk 0:04:59.2]} 1... g6 {[%clk 0:04:57.6]} 2. c4 {[%clk 0:04:58.6]}
2... Bg7 {[%clk 0:04:56.6]} 3. Nc3 {[%clk 0:04:58.1]} 3... d6 {[%clk 0:04:55.7]}
4. e4 {[%clk 0:04:57.6]} 4... Nc6 {[%clk 0:04:54.4]} 5. Be2 {[%clk 0:04:56.9]}
5... Nxd4 {[%clk 0:04:52.8]} 6. Be3 {[%clk 0:04:49.4]} 6... c5 {[%clk
0:04:47.7]} 7. Nf3 {[%clk 0:04:47]} 7... e5 {[%clk 0:04:45.7]} 8. O-O {[%clk
0:04:45.6]} 8... Ne7 {[%clk 0:04:44.4]} 9. b4 {[%clk 0:04:44.3]} 9... O-O {[%clk
0:04:41.2]} 10. bxc5 {[%clk 0:04:43.1]} 10... dxc5 {[%clk 0:04:40.1]} 11. Rc1
{[%clk 0:04:40.3]} 11... Bd7 {[%clk 0:04:38.4]} 12. Nd5 {[%clk 0:04:39.2]} 12...
Nxd5 {[%clk 0:04:35.1]} 13. cxd5 {[%clk 0:04:38.4]} 13... b6 {[%clk 0:04:34.1]}
14. Bc4 {[%clk 0:04:33.1]} 14... Bg4 {[%clk 0:04:29.6]} 15. h3 {[%clk
0:04:31.6]} 15... Nxf3+ {[%clk 0:04:23]} 16. gxf3 {[%clk 0:04:28.1]} 16... Bxh3
{[%clk 0:04:21.9]} 17. Kh2 {[%clk 0:04:26.5]} 0-1

[Event "Live Chess"]
[Site "Chess.com"]
[Date "2023.05.21"]
[Round "-"]
[White "ameetghasi100"]
[Black "mattihelenius2"]
[Result "1-0"]
[WhiteElo "2597"]
[BlackElo "492"]
[TimeControl "300"]
[EndTime "4:48:32 PDT"]
[Termination "ameetghasi100 won by checkmate"]

1. d4 {[%clk 0:04:55.4]} 1... d5 {[%clk 0:04:56.9]} 2. Nf3 {[%clk 0:04:55.3]}
2... Nf6 {[%clk 0:04:52.9]} 3. Nc3 {[%clk 0:04:55.2]} 3... Nc6 {[%clk
0:04:48.9]} 4. Bg5 {[%clk 0:04:53.8]} 4... e6 {[%clk 0:04:41.3]} 5. e4 {[%clk
0:04:51.8]} 5... Be7 {[%clk 0:04:35.1]} 6. Bxf6 {[%clk 0:04:49.3]} 6... Bxf6
{[%clk 0:04:33.8]} 7. e5 {[%clk 0:04:48.2]} 7... Be7 {[%clk 0:04:24.6]} 8. Bd3
{[%clk 0:04:45.5]} 8... O-O {[%clk 0:04:19.3]} 9. h4 {[%clk 0:04:43.1]} 9... Bd7
{[%clk 0:04:01.1]} 10. Bxh7+ {[%clk 0:04:37.6]} 10... Kh8 {[%clk 0:03:45.1]} 11.
Bd3 {[%clk 0:04:33]} 11... Nb4 {[%clk 0:03:36.9]} 12. Ng5 {[%clk 0:04:29.5]}
12... Nxd3+ {[%clk 0:03:35.3]} 13. Qxd3 {[%clk 0:04:29.4]} 13... Bxg5 {[%clk
0:03:32.8]} 14. hxg5+ {[%clk 0:04:28.6]} 14... Kg8 {[%clk 0:03:31.6]} 15. Qh7#
{[%clk 0:04:28.5]} 1-0

[Event "Live Chess"]
[Site "Chess.com"]
[Date "2023.05.21"]
[Round "-"]
[White "Long1968"]
[Black "AbilifyXL"]
[Result "0-1"]
[WhiteElo "959"]
[BlackElo "1954"]
[TimeControl "300"]
[EndTime "4:48:34 PDT"]
[Termination "AbilifyXL won on time"]

1. e4 {[%clk 0:04:58.3]} 1... d5 {[%clk 0:04:59.4]} 2. exd5 {[%clk 0:04:56.1]}
2... Qxd5 {[%clk 0:04:59.3]} 3. Nc3 {[%clk 0:04:53.9]} 3... Qa5 {[%clk
0:04:51.6]} 4. d4 {[%clk 0:04:51.3]} 4... c6 {[%clk 0:04:50.9]} 5. Bd2 {[%clk
0:04:46.9]} 5... Qb6 {[%clk 0:04:49.6]} 6. Nf3 {[%clk 0:04:43.1]} 6... Bg4
{[%clk 0:04:48.3]} 7. Be3 {[%clk 0:04:20.7]} 7... Qxb2 {[%clk 0:04:46.7]} 8. Na4
{[%clk 0:03:30.8]} 8... Qb4+ {[%clk 0:04:41.7]} 9. c3 {[%clk 0:03:25.6]} 9...
Qa5 {[%clk 0:04:37.8]} 10. Be2 {[%clk 0:03:16]} 10... e6 {[%clk 0:04:36.7]} 11.
Bd2 {[%clk 0:02:57.8]} 11... Qc7 {[%clk 0:04:16.7]} 12. O-O {[%clk 0:02:45.4]}
12... Nf6 {[%clk 0:04:15.5]} 13. h3 {[%clk 0:02:38.3]} 13... Bh5 {[%clk
0:04:14.5]} 14. g4 {[%clk 0:02:32.4]} 14... Bg6 {[%clk 0:04:13.4]} 15. Ne5
{[%clk 0:02:28.2]} 15... Nbd7 {[%clk 0:04:12.4]} 16. Bf4 {[%clk 0:02:14.4]}
16... Bd6 {[%clk 0:04:10.4]} 17. Nxd7 {[%clk 0:01:47.1]} 17... Nxd7 {[%clk
0:04:05.8]} 18. Bxd6 {[%clk 0:01:33]} 18... Qxd6 {[%clk 0:04:04.7]} 19. c4
{[%clk 0:01:18]} 19... O-O {[%clk 0:04:00.7]} 20. c5 {[%clk 0:01:11]} 20... Qc7
{[%clk 0:03:59.5]} 21. Qb3 {[%clk 0:00:58.6]} 21... Rfd8 {[%clk 0:03:55.6]} 22.
Rab1 {[%clk 0:00:49.2]} 22... Bxb1 {[%clk 0:03:54.2]} 23. Rxb1 {[%clk
0:00:41.3]} 23... Rab8 {[%clk 0:03:53.2]} 24. Bd3 {[%clk 0:00:21.6]} 24... g6
{[%clk 0:03:46.7]} 25. Qc2 {[%clk 0:00:17.3]} 25... b6 {[%clk 0:03:45.4]} 26.
cxb6 {[%clk 0:00:06]} 26... axb6 {[%clk 0:03:42.9]} 27. Be4 {[%clk 0:00:01.4]}
27... c5 {[%clk 0:03:40.7]} 0-1

[Event "Live Chess"]
[Site "Chess.com"]
[Date "2023.05.21"]
[Round "-"]
[White "Ferrarifan27"]
[Black "ProfPoisson"]
[Result "1-0"]
[WhiteElo "2078"]
[BlackElo "1215"]
[TimeControl "300"]
[EndTime "4:49:12 PDT"]
[Termination "Ferrarifan27 won by resignation"]

1. e4 {[%clk 0:04:58.1]} 1... e5 {[%clk 0:04:54.2]} 2. Nf3 {[%clk 0:04:56.6]}
2... Nf6 {[%clk 0:04:51.7]} 3. Nxe5 {[%clk 0:04:54.4]} 3... Nxe4 {[%clk
0:04:48.8]} 4. Qe2 {[%clk 0:04:52.7]} 4... Qe7 {[%clk 0:04:46.3]} 5. Qxe4 {[%clk
0:04:51.4]} 5... d6 {[%clk 0:04:44.2]} 6. d4 {[%clk 0:04:46.2]} 6... dxe5 {[%clk
0:04:42.4]} 7. Qxe5 {[%clk 0:04:41.8]} 7... Qxe5+ {[%clk 0:04:39.5]} 8. dxe5
{[%clk 0:04:41.7]} 8... Nc6 {[%clk 0:04:37.4]} 9. Bb5 {[%clk 0:04:39.1]} 9...
Bd7 {[%clk 0:04:34.9]} 10. Bxc6 {[%clk 0:04:37.2]} 10... Bxc6 {[%clk 0:04:33.3]}
11. O-O {[%clk 0:04:36.5]} 11... O-O-O {[%clk 0:04:31.2]} 12. Nc3 {[%clk
0:04:29.9]} 12... Be7 {[%clk 0:04:09]} 13. Be3 {[%clk 0:04:23.7]} 13... f6
{[%clk 0:04:06.4]} 14. exf6 {[%clk 0:04:17.9]} 14... gxf6 {[%clk 0:04:04.1]} 15.
Rad1 {[%clk 0:04:14.2]} 15... Rhg8 {[%clk 0:04:00.6]} 16. g3 {[%clk 0:04:12.6]}
16... h5 {[%clk 0:03:55.9]} 17. Rxd8+ {[%clk 0:04:06.8]} 17... Kxd8 {[%clk
0:03:51]} 18. Rd1+ {[%clk 0:04:02.1]} 18... Kc8 {[%clk 0:03:48.8]} 19. Nd5
{[%clk 0:03:56.3]} 19... Bxd5 {[%clk 0:03:33.8]} 20. Rxd5 {[%clk 0:03:56.2]}
20... h4 {[%clk 0:03:29.8]} 21. Kf1 {[%clk 0:03:49.6]} 21... hxg3 {[%clk
0:03:19.5]} 22. hxg3 {[%clk 0:03:47.7]} 22... c6 {[%clk 0:03:08.3]} 23. Ra5
{[%clk 0:03:36.3]} 23... a6 {[%clk 0:03:04.7]} 24. Rh5 {[%clk 0:03:34.1]} 24...
Kd7 {[%clk 0:02:46.3]} 25. Rh7 {[%clk 0:03:30.7]} 25... Ke6 {[%clk 0:02:42.6]}
26. Ke2 {[%clk 0:03:28.2]} 26... b5 {[%clk 0:02:35.1]} 27. Rh4 {[%clk
0:03:08.8]} 27... f5 {[%clk 0:02:26.6]} 28. Rh6+ {[%clk 0:03:07.4]} 28... Kd5
{[%clk 0:02:24.1]} 29. Rh7 {[%clk 0:03:00.8]} 29... Bc5 {[%clk 0:02:19.1]} 30.
Bxc5 {[%clk 0:02:56]} 30... Kxc5 {[%clk 0:02:16.8]} 31. Rh5 {[%clk 0:02:53.6]}
31... Rf8 {[%clk 0:02:09.5]} 32. g4 {[%clk 0:02:49]} 32... Re8+ {[%clk
0:01:51.9]} 33. Kf3 {[%clk 0:02:43.6]} 33... Kd5 {[%clk 0:01:44.7]} 34. Rxf5+
{[%clk 0:02:40.5]} 34... Ke6 {[%clk 0:01:37.3]} 35. Rf4 {[%clk 0:02:37.5]} 35...
c5 {[%clk 0:01:32.3]} 36. g5 {[%clk 0:02:33.7]} 36... c4 {[%clk 0:01:29.3]} 37.
Rf6+ {[%clk 0:02:32.3]} 37... Kd5 {[%clk 0:01:22.3]} 38. Rxa6 {[%clk 0:02:31.3]}
38... Rf8+ {[%clk 0:01:20.8]} 39. Rf6 {[%clk 0:02:29.9]} 39... Rg8 {[%clk
0:01:16.4]} 40. Kf4 {[%clk 0:02:27.4]} 40... Kd4 {[%clk 0:01:12.8]} 41. g6
{[%clk 0:02:21.4]} 41... b4 {[%clk 0:01:08.8]} 42. Kf5 {[%clk 0:02:17.3]} 42...
b3 {[%clk 0:01:03.2]} 43. axb3 {[%clk 0:02:12.8]} 43... cxb3 {[%clk 0:01:00.9]}
44. cxb3 {[%clk 0:02:12]} 44... Kc5 {[%clk 0:00:59.2]} 45. f4 {[%clk 0:02:07.2]}
45... Kb4 {[%clk 0:00:57.5]} 46. Rb6+ {[%clk 0:02:04.8]} 46... Kc5 {[%clk
0:00:55.4]} 47. Rb7 {[%clk 0:02:03.7]} 47... Kc6 {[%clk 0:00:51]} 48. Rf7 {[%clk
0:01:54.9]} 48... Kd6 {[%clk 0:00:46.5]} 49. g7 {[%clk 0:01:52.6]} 49... Rb8
{[%clk 0:00:33.3]} 50. Rf8 {[%clk 0:01:37.4]} 50... Rb5+ {[%clk 0:00:31.5]} 51.
Kf6 {[%clk 0:01:34]} 51... Kd7 {[%clk 0:00:18.7]} 52. g8=Q {[%clk 0:01:29.5]}
52... Rb6+ {[%clk 0:00:17.3]} 53. Kf7 {[%clk 0:01:28]} 53... Rf6+ {[%clk
0:00:12]} 54. Kxf6 {[%clk 0:01:25.7]} 1-0

[Event "Live Chess"]
[Site "Chess.com"]
[Date "2023.05.21"]
[Round "-"]
[White "MarkLim1"]
[Black "JoRoSaR"]
[Result "1-0"]
[WhiteElo "1686"]
[BlackElo "1686"]
[TimeControl "300"]
[EndTime "4:49:14 PDT"]
[Termination "MarkLim1 won by checkmate"]

1. d4 {[%clk 0:04:58.6]} 1... e6 {[%clk 0:04:57.7]} 2. Nf3 {[%clk 0:04:57.6]}
2... f5 {[%clk 0:04:57.2]} 3. e3 {[%clk 0:04:56.7]} 3... Nf6 {[%clk 0:04:56.8]}
4. Be2 {[%clk 0:04:56.1]} 4... d6 {[%clk 0:04:56.3]} 5. O-O {[%clk 0:04:55.6]}
5... Be7 {[%clk 0:04:55.9]} 6. c4 {[%clk 0:04:54.9]} 6... O-O {[%clk 0:04:55.3]}
7. Nc3 {[%clk 0:04:54.3]} 7... Qe8 {[%clk 0:04:54.9]} 8. b4 {[%clk 0:04:53.1]}
8... Nbd7 {[%clk 0:04:54.4]} 9. a4 {[%clk 0:04:52.2]} 9... Bd8 {[%clk
0:04:53.1]} 10. b5 {[%clk 0:04:51.3]} 10... e5 {[%clk 0:04:52.4]} 11. a5 {[%clk
0:04:48.8]} 11... e4 {[%clk 0:04:51.2]} 12. Ne1 {[%clk 0:04:47.7]} 12... c6
{[%clk 0:04:50.7]} 13. a6 {[%clk 0:04:45.4]} 13... bxa6 {[%clk 0:04:47.9]} 14.
bxc6 {[%clk 0:04:42.6]} 14... Nb6 {[%clk 0:04:41.7]} 15. d5 {[%clk 0:04:36.5]}
15... Qg6 {[%clk 0:04:34]} 16. Ba3 {[%clk 0:04:33.8]} 16... Be7 {[%clk
0:04:32.2]} 17. Nc2 {[%clk 0:04:25]} 17... Ne8 {[%clk 0:04:30.7]} 18. Nd4 {[%clk
0:04:22.4]} 18... Bf6 {[%clk 0:04:30]} 19. Rc1 {[%clk 0:04:19.1]} 19... Qf7
{[%clk 0:04:26.2]} 20. c5 {[%clk 0:04:02.2]} 20... dxc5 {[%clk 0:04:23]} 21.
Bxc5 {[%clk 0:04:01]} 21... Nxd5 {[%clk 0:04:19.9]} 22. Bxf8 {[%clk 0:03:59]}
22... Nxc3 {[%clk 0:04:17.8]} 23. Rxc3 {[%clk 0:03:56.1]} 23... Qxf8 {[%clk
0:04:15.1]} 24. Bc4+ {[%clk 0:03:51.6]} 24... Kh8 {[%clk 0:04:13.6]} 25. Qc2
{[%clk 0:03:37.1]} 25... Nd6 {[%clk 0:04:11.5]} 26. Be2 {[%clk 0:03:29.2]} 26...
Rb8 {[%clk 0:03:54]} 27. Ra1 {[%clk 0:03:25.5]} 27... Nb5 {[%clk 0:03:45.7]} 28.
Nxb5 {[%clk 0:03:18.9]} 28... axb5 {[%clk 0:03:45]} 29. Rxa7 {[%clk 0:03:03.8]}
29... Bxc3 {[%clk 0:03:43.2]} 30. Qxc3 {[%clk 0:03:03]} 30... Qd6 {[%clk
0:03:29]} 31. Qxg7# {[%clk 0:02:59.9]} 1-0

[Event "Live Chess"]
[Site "Chess.com"]
[Date "2023.05.21"]
[Round "-"]
[White "TheAuditer"]
[Black "LL220284LL"]
[Result "0-1"]
[WhiteElo "1398"]
[BlackElo "2326"]
[TimeControl "300"]
[EndTime "4:49:24 PDT"]
[Termination "LL220284LL won by resignation"]

1. d4 {[%clk 0:04:58]} 1... Nf6 {[%clk 0:04:58.4]} 2. c4 {[%clk 0:04:55.9]} 2...
e6 {[%clk 0:04:57.2]} 3. Nc3 {[%clk 0:04:54.1]} 3... Bb4 {[%clk 0:04:55.8]} 4.
Nf3 {[%clk 0:04:52.6]} 4... b6 {[%clk 0:04:53.9]} 5. Qc2 {[%clk 0:04:49.4]} 5...
Bb7 {[%clk 0:04:52.6]} 6. g3 {[%clk 0:04:46.9]} 6... d5 {[%clk 0:04:51]} 7. cxd5
{[%clk 0:04:41.5]} 7... Nxd5 {[%clk 0:04:41.4]} 8. Bg2 {[%clk 0:04:37]} 8... O-O
{[%clk 0:04:39.8]} 9. O-O {[%clk 0:04:32.4]} 9... Nxc3 {[%clk 0:04:38.8]} 10.
bxc3 {[%clk 0:04:30.4]} 10... Be7 {[%clk 0:04:38.7]} 11. a4 {[%clk 0:04:15.2]}
11... a5 {[%clk 0:04:36.6]} 12. Ba3 {[%clk 0:04:11.7]} 12... Nd7 {[%clk
0:04:34.3]} 13. Bxe7 {[%clk 0:04:08.6]} 13... Qxe7 {[%clk 0:04:32.1]} 14. Rfe1
{[%clk 0:04:04.3]} 14... e5 {[%clk 0:04:27.5]} 15. e3 {[%clk 0:03:57.5]} 15...
Rad8 {[%clk 0:04:23.5]} 16. Rad1 {[%clk 0:03:52.7]} 16... Rfe8 {[%clk
0:04:21.7]} 17. Nxe5 {[%clk 0:03:30.3]} 17... Bxg2 {[%clk 0:04:17.2]} 18. Nxd7
{[%clk 0:03:26.1]} 18... Be4 {[%clk 0:04:14.8]} 0-1

[Event "Live Chess"]
[Site "Chess.com"]
[Date "2023.05.21"]
[Round "-"]
[White "LiamBellwood"]
[Black "friarnator"]
[Result "0-1"]
[WhiteElo "1900"]
[BlackElo "2007"]
[TimeControl "300"]
[EndTime "4:49:29 PDT"]
[Termination "friarnator won by checkmate"]

1. d4 {[%clk 0:04:59.4]} 1... Nf6 {[%clk 0:04:57.6]} 2. Nc3 {[%clk 0:04:59]}
2... e6 {[%clk 0:04:55.5]} 3. Bf4 {[%clk 0:04:58.6]} 3... d5 {[%clk 0:04:54.8]}
4. Nb5 {[%clk 0:04:56.3]} 4... Na6 {[%clk 0:04:53.7]} 5. a3 {[%clk 0:04:48.5]}
5... c6 {[%clk 0:04:51.5]} 6. Nc3 {[%clk 0:04:47.9]} 6... Qb6 {[%clk 0:04:28.7]}
7. Rb1 {[%clk 0:04:39.1]} 7... Be7 {[%clk 0:04:21.6]} 8. Nf3 {[%clk 0:04:36.3]}
8... O-O {[%clk 0:04:20.1]} 9. e3 {[%clk 0:04:35.7]} 9... c5 {[%clk 0:04:15.4]}
10. Be2 {[%clk 0:04:29.9]} 10... c4 {[%clk 0:04:06.9]} 11. O-O {[%clk
0:04:25.7]} 11... Bd7 {[%clk 0:04:03.6]} 12. Ne5 {[%clk 0:04:22.7]} 12... Rac8
{[%clk 0:03:53.8]} 13. e4 {[%clk 0:04:19.7]} 13... Rfd8 {[%clk 0:03:48.3]} 14.
exd5 {[%clk 0:04:04.3]} 14... exd5 {[%clk 0:03:22.7]} 15. Bf3 {[%clk 0:04:02.9]}
15... Be6 {[%clk 0:03:20.6]} 16. Re1 {[%clk 0:04:01.4]} 16... Nc7 {[%clk
0:03:17.1]} 17. Ne2 {[%clk 0:03:55.5]} 17... Nb5 {[%clk 0:03:11.1]} 18. c3
{[%clk 0:03:54]} 18... Nd6 {[%clk 0:03:10.1]} 19. Ng3 {[%clk 0:03:52.4]} 19...
Nf5 {[%clk 0:03:08.5]} 20. Qd2 {[%clk 0:03:30.4]} 20... Nxg3 {[%clk 0:03:05.8]}
21. Bxg3 {[%clk 0:03:27.6]} 21... Bd6 {[%clk 0:03:03.9]} 22. Bh4 {[%clk
0:03:19.7]} 22... Be7 {[%clk 0:02:58.1]} 23. Qf4 {[%clk 0:02:58.5]} 23... Qc7
{[%clk 0:02:49.9]} 24. Bg3 {[%clk 0:02:47]} 24... Ne8 {[%clk 0:02:38.4]} 25. Qe3
{[%clk 0:02:40.5]} 25... Bf6 {[%clk 0:02:27.9]} 26. Ng6 {[%clk 0:02:23.6]} 26...
Nd6 {[%clk 0:02:01.2]} 27. Nf4 {[%clk 0:02:18.5]} 27... Re8 {[%clk 0:01:42.8]}
28. Nxe6 {[%clk 0:02:00.1]} 28... Rxe6 {[%clk 0:01:40.5]} 29. Qd2 {[%clk
0:01:59.7]} 29... Qc6 {[%clk 0:01:27.5]} 30. Rxe6 {[%clk 0:01:47.5]} 30... fxe6
{[%clk 0:01:25.7]} 31. Bg4 {[%clk 0:01:47.2]} 31... Ne4 {[%clk 0:01:22.2]} 32.
Qe2 {[%clk 0:01:31.6]} 32... Re8 {[%clk 0:01:17.5]} 33. f3 {[%clk 0:01:29.5]}
33... Nxg3 {[%clk 0:01:16.1]} 34. hxg3 {[%clk 0:01:29.4]} 34... e5 {[%clk
0:01:15.4]} 35. Re1 {[%clk 0:01:25.9]} 35... Kf7 {[%clk 0:01:11.8]} 36. Qc2
{[%clk 0:01:16.4]} 36... exd4 {[%clk 0:01:08.1]} 37. Rxe8 {[%clk 0:01:05.6]}
37... d3 {[%clk 0:00:54.2]} 38. Rf8+ {[%clk 0:00:41.6]} 38... Kxf8 {[%clk
0:00:51.4]} 39. Qd2 {[%clk 0:00:41.5]} 39... Be7 {[%clk 0:00:44.8]} 40. f4
{[%clk 0:00:38.3]} 40... Bc5+ {[%clk 0:00:42.4]} 41. Kf1 {[%clk 0:00:31.3]}
41... Qh6 {[%clk 0:00:38.3]} 42. Bh3 {[%clk 0:00:26.9]} 42... Qg6 {[%clk
0:00:29.3]} 43. g4 {[%clk 0:00:19.3]} 43... Qe4 {[%clk 0:00:23.9]} 44. g5 {[%clk
0:00:13.3]} 44... Be3 {[%clk 0:00:22.7]} 45. Qd1 {[%clk 0:00:07]} 45... d2
{[%clk 0:00:21.8]} 46. Bg4 {[%clk 0:00:03.4]} 46... Qxf4+ {[%clk 0:00:18.7]} 47.
Bf3 {[%clk 0:00:03.3]} 47... Qg3 {[%clk 0:00:15.2]} 48. Qe2 {[%clk 0:00:02.4]}
48... d1=Q+ {[%clk 0:00:13.2]} 49. Qxd1 {[%clk 0:00:02.3]} 49... Qf2# {[%clk
0:00:12.2]} 0-1

[Event "Live Chess"]
[Site "Chess.com"]
[Date "2023.05.21"]
[Round "-"]
[White "SupremeTactician"]
[Black "EdenHazard8"]
[Result "1-0"]
[WhiteElo "2241"]
[BlackElo "1931"]
[TimeControl "300"]
[EndTime "4:49:38 PDT"]
[Termination "SupremeTactician won by checkmate"]

1. e4 {[%clk 0:04:58.2]} 1... c5 {[%clk 0:04:59.9]} 2. Nf3 {[%clk 0:04:57.2]}
2... Nc6 {[%clk 0:04:58.9]} 3. d4 {[%clk 0:04:56.3]} 3... cxd4 {[%clk
0:04:58.8]} 4. Nxd4 {[%clk 0:04:56.2]} 4... Nf6 {[%clk 0:04:58.4]} 5. Nc3 {[%clk
0:04:55.2]} 5... d6 {[%clk 0:04:57.2]} 6. Nxc6 {[%clk 0:04:52.3]} 6... bxc6
{[%clk 0:04:55.8]} 7. Be3 {[%clk 0:04:51.6]} 7... g6 {[%clk 0:04:54.4]} 8. Be2
{[%clk 0:04:50.5]} 8... Bg7 {[%clk 0:04:53.3]} 9. O-O {[%clk 0:04:47.4]} 9...
O-O {[%clk 0:04:52]} 10. f3 {[%clk 0:04:45.3]} 10... Rb8 {[%clk 0:04:49.7]} 11.
Rb1 {[%clk 0:04:43.6]} 11... Qa5 {[%clk 0:04:46.6]} 12. a3 {[%clk 0:04:30.1]}
12... c5 {[%clk 0:04:40.1]} 13. Bc4 {[%clk 0:04:24.2]} 13... Ba6 {[%clk
0:04:36.7]} 14. Bxa6 {[%clk 0:04:17.7]} 14... Qxa6 {[%clk 0:04:36.6]} 15. Qd3
{[%clk 0:04:17.3]} 15... Qc6 {[%clk 0:04:32.2]} 16. Nd5 {[%clk 0:04:09.8]} 16...
Nxd5 {[%clk 0:04:30.4]} 17. exd5 {[%clk 0:04:09.7]} 17... Qa4 {[%clk 0:04:27.7]}
18. c3 {[%clk 0:03:59.1]} 18... Rb3 {[%clk 0:04:24.6]} 19. Bg5 {[%clk
0:03:54.6]} 19... f6 {[%clk 0:04:19.7]} 20. Bd2 {[%clk 0:03:51.5]} 20... Rfb8
{[%clk 0:04:16.7]} 21. Qe3 {[%clk 0:03:40.8]} 21... Bf8 {[%clk 0:04:14.1]} 22.
Qe6+ {[%clk 0:03:39.6]} 22... Kg7 {[%clk 0:04:12.7]} 23. h4 {[%clk 0:03:06]}
23... Rxb2 {[%clk 0:04:10.5]} 24. Rxb2 {[%clk 0:03:05.4]} 24... Rxb2 {[%clk
0:04:10.4]} 25. Be3 {[%clk 0:03:04.9]} 25... Qxh4 {[%clk 0:04:06]} 26. Qd7
{[%clk 0:02:41.1]} 26... Qg3 {[%clk 0:04:01.6]} 27. Bf2 {[%clk 0:02:40.2]} 27...
Qe5 {[%clk 0:03:59.1]} 28. Rd1 {[%clk 0:02:38.1]} 28... Qxc3 {[%clk 0:03:56.1]}
29. Re1 {[%clk 0:02:35.2]} 29... Qc2 {[%clk 0:03:33]} 30. Rxe7+ {[%clk 0:02:10]}
30... Bxe7 {[%clk 0:03:32.9]} 31. Qxe7+ {[%clk 0:02:09.6]} 31... Kh6 {[%clk
0:03:28.6]} 32. Be3+ {[%clk 0:02:08.5]} 32... g5 {[%clk 0:03:26.6]} 33. Qxf6+
{[%clk 0:02:07.7]} 33... Qg6 {[%clk 0:03:25.3]} 34. Bxg5+ {[%clk 0:02:06.6]}
34... Kh5 {[%clk 0:03:18.4]} 35. g4# {[%clk 0:02:06.5]} 1-0